[Event "ESP-chT Primera Division 2019"]
[Site "Linares"]
[Date "2019.08.28"]
[Round "3.18"]
[White "Hernandez Estevez, Yudania"]
[Black "Bermudez Revuelta, Paula"]
[Result "1-0"]
[ECO "B80"]
[WhiteElo "2247"]
[BlackElo "1702"]
[Annotator "NA"]
[PlyCount "129"]
[EventDate "2019.08.26"]
[EventType "team-tourn"]
[EventCountry "ESP"]
[SourceTitle "playchess.com"]
[Source "ChessBase"]
[SourceQuality "1"]
[TimeControl "5400+30"]

1. e4 {[%emt 0:00:00]} c5 {[%emt 0:00:00]} 2. Nc3 {[%emt 0:00:18]} d6 {[%emt 0:00:00]} 3. Nge2 {[%emt 0:00:24]} e6 {[%emt 0:02:02]} 4. d4 {[%emt 0:00:51]} cxd4 {[%emt 0:00:06]} 5. Nxd4 {[%emt 0:00:05]} Nf6 {[%emt 0:00:24]} 6. g3 {[%emt 0:00:45]} Be7 {[%emt 0:03:06]} 7. Bg2 {[%emt 0:00:16]} O-O {[%emt 0:01:53]} 8. O-O {[%emt 0:01:05]} Nbd7 {[%emt 0:01:44]} 9. a4 {[%emt 0:02:40]} a6 {[%emt 0:03:58]} 10. a5 {[%emt 0:06:33]} Qc7 {[%emt 0:02:12]} 11. f4 {[%emt 0:06:22]} Nc5 {[%emt 0:04:17]} 12. g4 {[%emt 0:06:49]} d5 {[%emt 0:11:09]} 13. e5 {[%emt 0:11:31]} Nfe4 {[%emt 0:01:21]} 14. Nxe4 {[%emt 0:00:20]} Nxe4 {[%emt 0:00:43]} 15. Be3 {[%emt 0:05:22]} Bb4 {[%emt 0:05:22]} 16. Bxe4 {[%emt 0:02:03]} dxe4 {[%emt 0:00:24]} 17. Nb3 {[%emt 0:01:16]} Bd7 {[%emt 0:09:48]} 18. Bb6 {[%emt 0:00:37]} Qc8 {[%emt 0:00:36]} 19. Qd4 {[%emt 0:04:37]} Be7 {[%emt 0:03:21]} 20. Rad1 {[%emt 0:01:57]} Bc6 {[%emt 0:04:44]} 21. f5 {[%emt 0:03:58]} exf5 22. gxf5 {[%emt 0:00:20]} Bg5 {[%emt 0:04:08]} 23. Qf2 {[%emt 0:03:52]} Bb5 {[%emt 0:10:43]} 24. Rfe1 {[%emt 0:01:58]} Bd7 {[%emt 0:00:19]} 25. Qg3 {[%emt 0:02:45]} Bh6 {[%emt 0:02:49]} 26. f6 {[%emt 0:05:58]} Bf5 {[%emt 0:00:53]} 27. Be3 {[%emt 0:06:21]} Bxe3+ {[%emt 0:00:27]} 28. Rxe3 {[%emt 0:00:05]} Bg6 {[%emt 0:00:20]} 29. Rc3 {[%emt 0:01:12]} Qf5 {[%emt 0:01:01]} 30. Nd4 {[%emt 0:03:04]} Qh5 31. Rf1 {[%emt 0:01:11]} Rfd8 {[%emt 0:04:46]} 32. Nf5 {[%emt 0:00:33]} Rd1 {[%emt 0:00:44]} 33. Ne3 {[%emt 0:06:35]} Rxf1+ {[%emt 0:01:47]} 34. Kxf1 {[%emt 0:00:19]} Rd8 {[%emt 0:03:28]} 35. e6 {[%emt 0:08:10]} Qb5+ {[%emt 0:01:07]} 36. Kg1 {[%emt 0:02:31]} fxe6 {[%emt 0:01:22]} 37. Rb3 {[%emt 0:01:44]} Qc6 {[%emt 0:02:54]} 38. h4 {[%emt 0:02:01]} Qd7 {[%emt 0:01:34]} 39. Rc3 {[%emt 0:00:32]} Qf7 {[%emt 0:02:16]} 40. fxg7 {[%emt 0:00:59]} Qf3 {[%emt 0:01:53]} 41. Nf1 {[%emt 0:00:31]} Qxg3+ {[%emt 0:01:23]} 42. Rxg3 {[%emt 0:00:23]} Rd5 {[%emt 0:01:03]} 43. Rb3 {[%emt 0:00:19]} Rb5 {[%emt 0:00:51]} 44. Rxb5 {[%emt 0:01:09]} axb5 {[%emt 0:00:01]} 45. Kf2 {[%emt 0:00:14]} Kxg7 {[%emt 0:00:08]} 46. Nd2 {[%emt 0:00:24]} e3+ {[%emt 0:00:18]} 47. Kxe3 {[%emt 0:00:11]} Bxc2 {[%emt 0:00:02]} 48. b4 {[%emt 0:00:13]} Kf6 {[%emt 0:00:27]} 49. Kd4 {[%emt 0:00:32]} e5+ {[%emt 0:02:31]} 50. Kc5 {[%emt 0:00:29]} Bf5 {[%emt 0:00:08]} 51. Kb6 {[%emt 0:00:15]} e4 {[%emt 0:00:36]} 52. Nf1 {[%emt 0:00:36]} Bc8 {[%emt 0:00:38]} 53. Kc7 {[%emt 0:00:05]} Bh3 {[%emt 0:00:04]} 54. Ne3 {[%emt 0:00:05]} Be6 {[%emt 0:01:16]} 55. Kxb7 {[%emt 0:00:13]} Ke5 {[%emt 0:00:25]} 56. a6 {[%emt 0:02:09]} Kd4 {[%emt 0:00:08]} 57. Nc2+ {[%emt 0:01:09]} Kd3 {[%emt 0:01:41]} 58. Kc6 {[%emt 0:00:26]} e3 {[%emt 0:01:09]} 59. Nxe3 {[%emt 0:00:39]} Kxe3 {[%emt 0:00:07]} 60. a7 {[%emt 0:00:12]} Bf5 {[%emt 0:00:25]} 61. Kxb5 {[%emt 0:00:09]} Be4 {[%emt 0:00:17]} 62. Kc5 {[%emt 0:00:19]} Ba8 {[%emt 0:03:31]} 63. b5 {[%emt 0:00:14]} Ke4 {[%emt 0:00:10]} 64. Kd6 {[%emt 0:00:12]} Kd4 {[%emt 0:01:06]} 65. b6 {[%emt 0:00:08] Kd5+} 1-0

[Event "ESP-chT Primera Division 2019"]
[Site "Linares"]
[Date "2019.08.28"]
[Round "3.21"]
[White "Cuenca Jimenez, Jose Fernando"]
[Black "Henderson de La Fuente, Lance"]
[Result "1-0"]
[ECO "C15"]
[WhiteElo "2515"]
[BlackElo "2487"]
[Annotator "ChessBase"]
[PlyCount "95"]
[EventDate "2019.08.26"]
[EventType "team-tourn"]
[EventCountry "ESP"]
[SourceTitle "playchess.com"]
[Source "ChessBase"]
[SourceQuality "1"]
[TimeControl "5400+30"]

1. e4 {[%emt 0:00:00]} e6 {[%emt 0:00:05]} 2. d4 {[%emt 0:00:20]} d5 {[%emt 0:00:08]} 3. Nc3 {[%emt 0:00:40]} Bb4 {[%emt 0:00:19]} 4. Nge2 {[%emt 0:05:19]} Nf6 {[%emt 0:02:07]} 5. e5 {[%emt 0:11:41]} Nfd7 {[%emt 0:00:20]} 6. f4 {[%emt 0:04:18]} O-O {[%emt 0:01:58]} 7. a3 {[%emt 0:11:23]} Be7 {[%emt 0:01:16]} 8. Be3 {[%emt 0:00:23]} c5 {[%emt 0:00:40]} 9. dxc5 {[%emt 0:03:01]} Bxc5 {[%emt 0:09:16]} 10. Qd2 {[%emt 0:04:05]} Nc6 {[%emt 0:01:39]} 11. O-O-O {[%emt 0:10:06]} a6 {[%emt 0:03:22]} 12. Bxc5 {[%emt 0:02:09]} Nxc5 {[%emt 0:00:07]} 13. Qe3 {[%emt 0:00:21]} b6 {[%emt 0:06:31]} 14. Nd4 {[%emt 0:02:39]} Nxd4 {[%emt 0:01:35]} 15. Rxd4 {[%emt 0:01:31]} Bb7 {[%emt 0:00:31]} 16. h4 {[%emt 0:10:27]} f6 {[%emt 0:22:10]} 17. g3 {[%emt 0:21:11]} fxe5 {[%emt 0:10:39]} 18. Qxe5 {[%emt 0:01:34]} Qf6 {[%emt 0:01:12]} 19. Qxf6 {[%emt 0:00:34]} gxf6 {[%emt 0:00:25]} 20. Bg2 {[%emt 0:00:03]} f5 {[%emt 0:02:47]} 21. Re1 {[%emt 0:01:21]} Kf7 {[%emt 0:01:02]} 22. b4 {[%emt 0:02:53]} Ne4 {[%emt 0:02:14]} 23. Bxe4 {[%emt 0:00:31]} fxe4 {[%emt 0:00:55]} 24. Nxe4 {[%emt 0:01:37]} dxe4 {[%emt 0:02:08]} 25. Rd7+ {[%emt 0:00:01]} Kf6 {[%emt 0:01:57]} 26. Rxb7 {[%emt 0:00:02]} Rg8 {[%emt 0:01:06]} 27. Rxe4 {[%emt 0:00:39]} Rxg3 {[%emt 0:00:23]} 28. Rxb6 {[%emt 0:00:23]} Rxa3 {[%emt 0:00:25]} 29. Kb2 {[%emt 0:00:42]} Ra4 {[%emt 0:03:23]} 30. Rbxe6+ {[%emt 0:00:07]} Kf5 {[%emt 0:00:04]} 31. R6e5+ {[%emt 0:00:28]} Kf6 {[%emt 0:00:12]} 32. h5 {[%emt 0:03:50]} Rb8 {[%emt 0:00:36]} 33. Kb3 {[%emt 0:00:48]} Ra1 {[%emt 0:00:01]} 34. Re1 {[%emt 0:01:01]} Rxe1 35. Rxe1 {[%emt 0:00:00]} a5 {[%emt 0:00:29]} 36. c3 {[%emt 0:00:33]} axb4 {[%emt 0:00:06]} 37. cxb4 {[%emt 0:00:01]} Kf5 {[%emt 0:00:12]} 38. Re5+ {[%emt 0:01:25]} Kxf4 {[%emt 0:00:11]} 39. Rc5 {[%emt 0:00:02]} Ke4 {[%emt 0:00:37]} 40. Rc7 {[%emt 0:01:05]} Kd5 {[%emt 0:02:16]} 41. Rxh7 {[%emt 0:00:01]} Kc6 {[%emt 0:00:36]} 42. Rg7 {[%emt 0:00:43]} Rf8 {[%emt 0:00:39]} 43. Rg3 {[%emt 0:00:56]} Rf4 {[%emt 0:00:49]} 44. Rh3 {[%emt 0:00:28]} Kb5 {[%emt 0:00:26]} 45. h6 {[%emt 0:00:01]} Rxb4+ {[%emt 0:00:09]} 46. Kc3 {[%emt 0:00:11]} Rc4+ {[%emt 0:00:42]} 47. Kd3 {[%emt 0:00:02]} Ra4 {[%emt 0:01:20]} 48. Rh5+ {[%emt 0:00:13]} 1-0

[Event "ESP-chT Primera Division 2019"]
[Site "Linares"]
[Date "2019.08.29"]
[Round "4.3"]
[White "Rubio Mejia, Luis Ignacio"]
[Black "Henderson de La Fuente, Lance"]
[Result "1/2-1/2"]
[ECO "E52"]
[WhiteElo "2435"]
[BlackElo "2487"]
[Annotator "ChessBase"]
[PlyCount "97"]
[EventDate "2019.08.26"]
[EventType "team-tourn"]
[EventCountry "ESP"]
[SourceTitle "playchess.com"]
[Source "ChessBase"]
[SourceQuality "1"]
[TimeControl "5400+30"]

1. d4 {[%emt 0:00:00]} Nf6 {[%emt 0:00:00]} 2. c4 {[%emt 0:00:00]} e6 {[%emt 0:00:00]} 3. Nc3 {[%emt 0:00:00]} Bb4 {[%emt 0:00:07]} 4. e3 {[%emt 0:00:10]} O-O {[%emt 0:00:36]} 5. Bd3 {[%emt 0:00:20]} d5 {[%emt 0:00:22]} 6. Nf3 {[%emt 0:00:54]} b6 {[%emt 0:00:36]} 7. a3 {[%emt 0:01:12]} Bxc3+ {[%emt 0:01:01]} 8. bxc3 {[%emt 0:00:11]} dxc4 {[%emt 0:00:26]} 9. Bxc4 {[%emt 0:00:27]} c5 {[%emt 0:00:25]} 10. O-O {[%emt 0:05:03]} Qc7 {[%emt 0:00:30]} 11. Qe2 {[%emt 0:04:19]} Bb7 {[%emt 0:00:52]} 12. Bd3 {[%emt 0:09:28]} Be4 {[%emt 0:13:39]} 13. a4 {[%emt 0:11:32]} Nbd7 {[%emt 0:02:07]} 14. Bb2 {[%emt 0:05:35]} Rac8 {[%emt 0:07:38]} 15. Ba6 {[%emt 0:25:19]} Bb7 {[%emt 0:02:52]} 16. Bd3 {[%emt 0:04:10]} Be4 {[%emt 0:04:14]} 17. Ba6 {[%emt 0:00:20]} Bb7 {[%emt 0:14:22]} 18. a5 {[%emt 0:08:57]} Bxa6 {[%emt 0:09:29]} 19. Qxa6 {[%emt 0:00:08]} Qc6 {[%emt 0:04:01]} 20. dxc5 {[%emt 0:06:37]} bxc5 {[%emt 0:11:23]} 21. Qxc6 {[%emt 0:00:53]} Rxc6 {[%emt 0:00:01]} 22. c4 {[%emt 0:00:27]} Rb8 {[%emt 0:00:40]} 23. Bc3 {[%emt 0:06:32]} Kf8 {[%emt 0:02:20]} 24. Rfb1 {[%emt 0:02:27]} Rxb1+ {[%emt 0:02:12]} 25. Rxb1 {[%emt 0:00:07]} Ne4 {[%emt 0:00:17]} 26. Rb7 {[%emt 0:05:49]} Rd6 {[%emt 0:04:55]} 27. Be1 {[%emt 0:00:38]} a6 {[%emt 0:00:16]} 28. Kf1 {[%emt 0:00:36]} Ke8 {[%emt 0:00:48]} 29. Ke2 {[%emt 0:00:50]} Kd8 {[%emt 0:00:46]} 30. Ra7 {[%emt 0:01:03]} Kc8 {[%emt 0:02:01]} 31. Ra8+ {[%emt 0:00:19]} Nb8 {[%emt 0:00:31]} 32. Ra7 {[%emt 0:00:18]} Rd7 {[%emt 0:02:18]} 33. Rxd7 {[%emt 0:00:06]} Nxd7 {[%emt 0:00:53]} 34. Nd2 {[%emt 0:01:14]} Nd6 {[%emt 0:01:39]} 35. Kd3 {[%emt 0:00:29]} Ne5+ {[%emt 0:02:17]} 36. Kc3 {[%emt 0:00:06]} Kd7 {[%emt 0:03:02]} 37. f3 {[%emt 0:00:46]} Nb7 {[%emt 0:00:22]} 38. Nb3 {[%emt 0:00:25]} g5 {[%emt 0:01:25]} 39. e4 {[%emt 0:00:54]} f5 {[%emt 0:01:11]} 40. exf5 {[%emt 0:00:20]} exf5 {[%emt 0:00:02]} 41. Bd2 {[%emt 0:00:29]} h6 {[%emt 0:02:26]} 42. h4 {[%emt 0:00:14]} f4 {[%emt 0:01:35]} 43. hxg5 {[%emt 0:00:05]} hxg5 {[%emt 0:00:01]} 44. Be1 {[%emt 0:00:47]} Kd6 {[%emt 0:02:13]} 45. Bd2 {[%emt 0:00:35]} Kc6 {[%emt 0:00:03]} 46. Be1 {[%emt 0:00:39]} Nd6 {[%emt 0:01:08]} 47. Bf2 {[%emt 0:00:54]} Ndxc4 {[%emt 0:01:22]} 48. Nxc5 {[%emt 0:00:20]} Nxa5 {[%emt 0:00:29]} 49. Kd4 {Kd5+} 1/2-1/2

[Event "ESP-chT Primera Division 2019"]
[Site "Linares"]
[Date "2019.08.29"]
[Round "4.4"]
[White "Cramling, Pia"]
[Black "Almagro Llamas, Pablo"]
[Result "1/2-1/2"]
[ECO "E19"]
[WhiteElo "2493"]
[BlackElo "2453"]
[Annotator "ChessBase"]
[PlyCount "68"]
[EventDate "2019.08.26"]
[EventType "team-tourn"]
[EventCountry "ESP"]
[SourceTitle "playchess.com"]
[Source "ChessBase"]
[SourceQuality "1"]
[TimeControl "5400+30"]

1. Nf3 {[%emt 0:00:00]} Nf6 {[%emt 0:00:00]} 2. c4 {[%emt 0:00:00]} e6 {[%emt 0:00:15]} 3. g3 {[%emt 0:00:00]} a6 {[%emt 0:01:33]} 4. Bg2 {[%emt 0:00:29]} b5 {[%emt 0:00:50]} 5. b3 {[%emt 0:00:15]} Bb7 {[%emt 0:00:30]} 6. Na3 {[%emt 0:03:11]} c5 {[%emt 0:01:37]} 7. O-O {[%emt 0:00:30]} Qb6 {[%emt 0:02:17]} 8. e3 {[%emt 0:01:02]} Be7 {[%emt 0:03:20]} 9. Qe2 {[%emt 0:00:30]} O-O {[%emt 0:02:19]} 10. Bb2 {[%emt 0:07:19]} d5 {[%emt 0:03:54]} 11. d4 {[%emt 0:04:36]} dxc4 {[%emt 0:19:50]} 12. bxc4 {[%emt 0:00:14]} b4 {[%emt 0:00:23]} 13. Nc2 {[%emt 0:09:53]} Nbd7 {[%emt 0:04:27]} 14. Rfc1 {[%emt 0:00:36]} a5 {[%emt 0:01:49]} 15. Rab1 {[%emt 0:02:00]} Rab8 {[%emt 0:03:39]} 16. Nce1 {[%emt 0:06:18]} Rfc8 {[%emt 0:02:48]} 17. Nd3 {[%emt 0:01:01]} Qa6 {[%emt 0:05:02]} 18. Nd2 {[%emt 0:06:10]} Bxg2 {[%emt 0:01:50]} 19. Kxg2 {[%emt 0:03:47]} Ne8 {[%emt 0:08:59]} 20. h4 {[%emt 0:16:28]} Nd6 {[%emt 0:06:09]} 21. Nf4 {[%emt 0:05:14]} Bf8 {[%emt 0:10:13]} 22. d5 {[%emt 0:03:31]} e5 {[%emt 0:05:12]} 23. Nd3 {[%emt 0:00:21]} e4 {[%emt 0:01:57]} 24. Ne5 {[%emt 0:01:56]} Nxe5 {[%emt 0:00:09]} 25. Bxe5 {[%emt 0:00:04]} Re8 {[%emt 0:00:08]} 26. Ba1 {[%emt 0:02:26]} a4 {[%emt 0:00:44]} 27. g4 {[%emt 0:00:57]} Qc8 {[%emt 0:00:57]} 28. Rh1 {[%emt 0:00:54]} Rb7 {[%emt 0:01:36]} 29. Nf1 {[%emt 0:01:50]} f6 {[%emt 0:06:18]} 30. Ng3 {[%emt 0:02:10]} Qd7 {[%emt 0:00:25]} 31. Nh5 {[%emt 0:01:42]} Qf7 {[%emt 0:01:38]} 32. Nf4 {[%emt 0:00:48]} Qd7 {[%emt 0:01:03]} 33. Nh5 {[%emt 0:02:48]} Qf7 {[%emt 0:00:13]} 34. Nf4 {[%emt 0:00:10]} Qd7 {[%emt 0:00:09]} 1/2-1/2

[Event "ESP-chT Primera Division 2019"]
[Site "Linares"]
[Date "2019.08.29"]
[Round "4.5"]
[White "Vazquez Torres, Adrian"]
[Black "Castellanos Rodriguez, Renier"]
[Result "0-1"]
[ECO "B32"]
[WhiteElo "2143"]
[BlackElo "2493"]
[Annotator "ChessBase"]
[PlyCount "92"]
[EventDate "2019.08.26"]
[EventType "team-tourn"]
[EventCountry "ESP"]
[SourceTitle "playchess.com"]
[Source "ChessBase"]
[SourceQuality "1"]
[TimeControl "5400+30"]

1. e4 {[%emt 0:00:00]} c5 {[%emt 0:00:00]} 2. Nf3 {[%emt 0:00:00]} Nc6 {[%emt 0:00:00]} 3. d4 {[%emt 0:00:00]} cxd4 {[%emt 0:00:00]} 4. Nxd4 {[%emt 0:00:05]} Qb6 {[%emt 0:00:30]} 5. Nb3 {[%emt 0:04:05]} Nf6 {[%emt 0:00:10]} 6. Bd3 {[%emt 0:02:29]} e6 {[%emt 0:02:28]} 7. O-O {[%emt 0:04:24]} d6 {[%emt 0:03:19]} 8. c4 {[%emt 0:01:39]} Ne5 {[%emt 0:11:05]} 9. Nc3 {[%emt 0:00:23]} Be7 {[%emt 0:02:04]} 10. Be3 {[%emt 0:03:47]} Qc7 {[%emt 0:00:19]} 11. Rc1 {[%emt 0:08:44]} b6 {[%emt 0:04:56]} 12. Nb5 {[%emt 0:04:15]} Qb8 {[%emt 0:00:22]} 13. Bf4 {[%emt 0:10:05]} Nfd7 {[%emt 0:06:44]} 14. Bg3 {[%emt 0:03:52]} a6 {[%emt 0:02:42]} 15. Nc3 {[%emt 0:01:53]} Bb7 {[%emt 0:04:42]} 16. f4 {[%emt 0:01:10]} Nxd3 {[%emt 0:01:06]} 17. Qxd3 {[%emt 0:00:05]} O-O {[%emt 0:05:24]} 18. f5 {[%emt 0:06:10]} Nf6 {[%emt 0:08:11]} 19. fxe6 {[%emt 0:06:45]} fxe6 {[%emt 0:00:03]} 20. Rcd1 {[%emt 0:00:56]} Rd8 {[%emt 0:03:58]} 21. Nd4 {[%emt 0:00:33]} Qc8 {[%emt 0:00:26]} 22. b3 {[%emt 0:00:18]} Rf8 {[%emt 0:09:02]} 23. Rfe1 {[%emt 0:10:56]} Rb8 {[%emt 0:16:35]} 24. Nd5 {[%emt 0:06:10]} exd5 {[%emt 0:00:40]} 25. exd5 {[%emt 0:00:02]} Qd7 {[%emt 0:01:02]} 26. Qf5 {[%emt 0:02:04]} Rbe8 {[%emt 0:04:32]} 27. Qe6+ {[%emt 0:02:31]} Qxe6 {[%emt 0:01:40]} 28. Nxe6 {[%emt 0:00:20]} Rf7 {[%emt 0:00:24]} 29. Ng5 {[%emt 0:00:16]} Bc8 {[%emt 0:01:41]} 30. Nxf7 {[%emt 0:00:50]} Kxf7 {[%emt 0:00:02]} 31. Bf2 {[%emt 0:00:54]} b5 {[%emt 0:00:59]} 32. c5 {[%emt 0:02:41]} dxc5 {[%emt 0:02:15]} 33. d6 {[%emt 0:00:01]} Bf8 {[%emt 0:00:42]} 34. Bxc5 {[%emt 0:00:09]} Be6 {[%emt 0:00:51]} 35. Bb6 {[%emt 0:02:03]} Bg4 {[%emt 0:00:21]} 36. Rxe8 {[%emt 0:00:56]} Kxe8 {[%emt 0:00:11]} 37. Rd4 {[%emt 0:00:35]} Kd7 {[%emt 0:00:07]} 38. a4 {[%emt 0:01:20]} Be6 {[%emt 0:00:16]} 39. axb5 {[%emt 0:01:19]} axb5 {[%emt 0:00:02]} 40. b4 {[%emt 0:00:33]} Bxd6 {[%emt 0:01:31]} 41. Bc5 {[%emt 0:00:07]} Nd5 {[%emt 0:00:45]} 42. Bxd6 {[%emt 0:00:29]} Kxd6 {[%emt 0:00:01]} 43. Kf2 {[%emt 0:00:34]} Ke5 {[%emt 0:00:39]} 44. Rh4 {[%emt 0:00:03]} Nf6 {[%emt 0:00:30]} 45. h3 {[%emt 0:01:52]} h5 {[%emt 0:01:47]} 46. Ke3 {[%emt 0:01:35]} g5 {[%emt 0:00:05] Kd4+} 0-1

[Event "ESP-chT Primera Division 2019"]
[Site "Linares"]
[Date "2019.08.29"]
[Round "4.6"]
[White "Oliva Castaneda, Kevel"]
[Black "Arno Bendicho, Xenia"]
[Result "1-0"]
[ECO "D30"]
[WhiteElo "2479"]
[BlackElo "1774"]
[Annotator "ChessBase"]
[PlyCount "85"]
[EventDate "2019.08.26"]
[EventType "team-tourn"]
[EventCountry "ESP"]
[SourceTitle "playchess.com"]
[Source "ChessBase"]
[SourceQuality "1"]
[TimeControl "5400+30"]

1. d4 {[%emt 0:00:00]} d5 {[%emt 0:00:00]} 2. c4 {[%emt 0:00:00]} e6 {[%emt 0:00:00]} 3. Nf3 {[%emt 0:00:00]} Nc6 {[%emt 0:00:06]} 4. Nc3 {[%emt 0:00:18]} Nf6 {[%emt 0:00:10]} 5. Bg5 {[%emt 0:00:38]} Be7 {[%emt 0:00:25]} 6. e3 {[%emt 0:00:07]} O-O {[%emt 0:00:23]} 7. a3 {[%emt 0:00:36]} a6 {[%emt 0:00:05]} 8. Qc2 {[%emt 0:00:28]} h6 {[%emt 0:04:24]} 9. Bh4 {[%emt 0:00:32]} b6 {[%emt 0:03:27]} 10. cxd5 {[%emt 0:01:32]} exd5 {[%emt 0:00:52]} 11. Bd3 {[%emt 0:00:26]} Bb7 {[%emt 0:11:05]} 12. b4 {[%emt 0:02:20]} Nh5 {[%emt 0:06:15]} 13. Bxe7 {[%emt 0:02:31]} Nxe7 {[%emt 0:00:09]} 14. O-O Nf6 {[%emt 0:00:55]} 15. Rac1 {[%emt 0:03:28]} Rc8 {[%emt 0:01:23]} 16. Rfd1 {[%emt 0:00:35]} Ne8 {[%emt 0:10:56]} 17. a4 {[%emt 0:01:32]} Nd6 {[%emt 0:04:15]} 18. Qe2 Ra8 19. Ne5 {[%emt 0:01:55]} c6 {[%emt 0:01:53]} 20. Bb1 {[%emt 0:03:08]} b5 {[%emt 0:05:26]} 21. Qc2 {[%emt 0:00:36]} g6 {[%emt 0:00:48]} 22. Ne2 {[%emt 0:00:54]} Nc4 {[%emt 0:00:30]} 23. Nf4 {[%emt 0:00:29]} Qd6 {[%emt 0:02:40]} 24. Qc3 {[%emt 0:01:07]} Bc8 {[%emt 0:10:39]} 25. f3 {[%emt 0:06:44]} Bd7 {[%emt 0:03:12]} 26. a5 {[%emt 0:00:31]} Rfc8 {[%emt 0:02:07]} 27. e4 {[%emt 0:00:59]} Ra7 {[%emt 0:01:35]} 28. Ned3 {[%emt 0:04:46]} Qf6 {[%emt 0:01:08]} 29. Rf1 {[%emt 0:01:09]} Qg5 {[%emt 0:02:16]} 30. Rce1 {[%emt 0:00:10]} Re8 {[%emt 0:01:34]} 31. g3 {[%emt 0:05:09]} h5 {[%emt 0:02:10]} 32. Kg2 {[%emt 0:00:33]} Kg7 {[%emt 0:01:19]} 33. Qc1 {[%emt 0:01:52]} Qh6 {[%emt 0:02:53]} 34. h4 {[%emt 0:00:07]} Be6 {[%emt 0:03:06]} 35. Nc5 {[%emt 0:00:40]} Bc8 {[%emt 0:02:15]} 36. Rf2 {[%emt 0:00:32]} Qh8 {[%emt 0:00:28]} 37. Rfe2 {[%emt 0:00:45]} Rd8 {[%emt 0:02:31]} 38. exd5 {[%emt 0:03:09]} Nxd5 {[%emt 0:00:24]} 39. Nxd5 {[%emt 0:01:43]} cxd5 {[%emt 0:00:12]} 40. Qg5 {[%emt 0:00:07]} Qf8 {[%emt 0:02:49]} 41. Re7 {[%emt 0:01:17]} Rxe7 {[%emt 0:00:23]} 42. Rxe7 {[%emt 0:00:04]} Re8 {[%emt 0:01:20]} 43. Qxg6+ {[%emt 0:00:07]} 1-0

[Event "ESP-chT Primera Division 2019"]
[Site "Linares"]
[Date "2019.08.29"]
[Round "4.8"]
[White "Volkov, Sergey"]
[Black "Salgado Lopez, Ivan"]
[Result "1/2-1/2"]
[ECO "D35"]
[WhiteElo "2547"]
[BlackElo "2596"]
[Annotator "ChessBase"]
[PlyCount "88"]
[EventDate "2019.08.26"]
[EventType "team-tourn"]
[EventCountry "ESP"]
[SourceTitle "playchess.com"]
[Source "ChessBase"]
[SourceQuality "1"]
[TimeControl "5400+30"]

1. d4 {[%emt 0:00:00]} Nf6 {[%emt 0:00:00]} 2. c4 {[%emt 0:00:00]} e6 {[%emt 0:00:00]} 3. Nf3 {[%emt 0:00:12]} d5 {[%emt 0:00:39]} 4. Nc3 {[%emt 0:00:10]} Nbd7 {[%emt 0:01:17]} 5. cxd5 {[%emt 0:01:44]} exd5 {[%emt 0:00:12]} 6. Bf4 {[%emt 0:00:35]} c6 {[%emt 0:01:26]} 7. h3 {[%emt 0:02:50]} Nb6 {[%emt 0:02:37]} 8. e3 {[%emt 0:03:20]} Bf5 {[%emt 0:00:20]} 9. Ne5 {[%emt 0:01:34]} Nfd7 {[%emt 0:04:34]} 10. Bd3 {[%emt 0:05:21]} Bxd3 {[%emt 0:00:56]} 11. Nxd3 {[%emt 0:00:08]} Be7 {[%emt 0:01:21]} 12. O-O {[%emt 0:00:34]} a5 {[%emt 0:02:16]} 13. Na4 {[%emt 0:11:41]} Nxa4 {[%emt 0:05:50]} 14. Qxa4 {[%emt 0:00:13]} O-O {[%emt 0:00:16]} 15. Qb3 {[%emt 0:03:03]} Ra7 {[%emt 0:01:27]} 16. a4 {[%emt 0:00:46]} Nf6 {[%emt 0:03:08]} 17. Rac1 {[%emt 0:03:34]} Ne4 {[%emt 0:01:38]} 18. Rc2 {[%emt 0:02:17]} Re8 {[%emt 0:02:57]} 19. f3 {[%emt 0:15:31]} Ng5 {[%emt 0:13:58]} 20. Kh1 {[%emt 0:05:59]} Ne6 {[%emt 0:00:48]} 21. Bh2 {[%emt 0:01:20]} Bf8 {[%emt 0:00:45]} 22. Bg1 {[%emt 0:02:54]} Re7 {[%emt 0:09:47]} 23. Qc3 {[%emt 0:08:24]} Ra8 {[%emt 0:07:49]} 24. Re2 {[%emt 0:02:54]} Rc8 {[%emt 0:06:11]} 25. e4 {[%emt 0:01:38]} b6 {[%emt 0:03:31]} 26. Rc1 {[%emt 0:06:58]} Re8 {[%emt 0:01:08]} 27. Rec2 {[%emt 0:01:36]} Rc7 {[%emt 0:06:36]} 28. Ne5 {[%emt 0:03:06]} c5 {[%emt 0:02:49]} 29. Qb3 {[%emt 0:00:37]} dxe4 {[%emt 0:03:37]} 30. Qxb6 {[%emt 0:02:44]} f6 {[%emt 0:05:21]} 31. Ng4 {[%emt 0:03:46]} exf3 {[%emt 0:00:58]} 32. dxc5 {[%emt 0:01:06]} h5 {[%emt 0:03:01]} 33. Re1 {[%emt 0:02:03]} fxg2+ {[%emt 0:03:45]} 34. Rxg2 {[%emt 0:01:12]} hxg4 {[%emt 0:00:15]} 35. Rxe6 {[%emt 0:00:18]} gxh3 {[%emt 0:00:22]} 36. Rxe8 {[%emt 0:01:20]} hxg2+ {[%emt 0:00:07]} 37. Kh2 {[%emt 0:01:18]} Qxe8 {[%emt 0:01:37]} 38. Qxc7 {[%emt 0:00:05]} Qxa4 {[%emt 0:01:11]} 39. c6 {[%emt 0:04:26]} Qh4+ {[%emt 0:03:48]} 40. Kxg2 {[%emt 0:00:03]} Qe4+ {[%emt 0:00:07]} 41. Kf1 {[%emt 0:01:20]} Qb1+ {[%emt 0:01:19]} 42. Kg2 {[%emt 0:00:30]} Qe4+ {[%emt 0:00:02]} 43. Kf1 {[%emt 0:00:04]} Qb1+ {[%emt 0:01:06]} 44. Kg2 {[%emt 0:00:01]} Qe4+ {[%emt 0:00:36]} 1/2-1/2